bitfinex-derivatives/quotes_BTCF0:USTF0_20250718
["timestamp","ask_amount","ask_price","bid_price","bid_amount"]
[1752827418976,0.75139907,119180.0,119170.0,0.5168298]
[1752827419172,0.70545907,119180.0,119170.0,0.5168298]
[1752827419875,0.70545907,119180.0,119170.0,0.5208298]
[1752827420375,0.75139907,119180.0,119170.0,0.5208298]
[1752827420578,0.75139907,119180.0,119170.0,0.5238298]
[1752827420774,1.11219907,119180.0,119170.0,0.5238298]
[1752827420979,0.75139907,119180.0,119170.0,0.5238298]
[1752827421278,0.75139907,119180.0,119170.0,0.4399714]
[1752827421879,1.11219907,119180.0,119170.0,0.4399714]
[1752827423978,0.73500968,119180.0,119170.0,0.4399714]
[1752827424180,1.11491907,119180.0,119170.0,0.439996]
[1752827424370,1.11386907,119180.0,119170.0,0.439996]
[1752827426080,1.11491907,119180.0,119170.0,0.439996]
[1752827427481,1.11386907,119180.0,119170.0,0.439996]
[1752827427982,1.11491907,119180.0,119170.0,0.4399959]
[1752827428883,1.11491907,119180.0,119170.0,0.27226]
[1752827429486,1.11491907,119180.0,119170.0,0.2422]
[1752827429687,1.11491907,119180.0,119170.0,0.18344]
[1752827429986,1.11491907,119180.0,119170.0,0.09863]
[1752827431488,1.11491907,119180.0,119170.0,0.1216]
[1752827432288,0.73500968,119180.0,119170.0,0.2893359]
[1752827432488,1.11491907,119180.0,119170.0,0.3391159]
[1752827432787,1.11491907,119180.0,119170.0,0.4399959]
[1752827432987,1.72479907,119180.0,119170.0,0.4399959]
[1752827433389,1.11491907,119180.0,119170.0,0.4399959]
[1752827433687,1.34488968,119180.0,119170.0,0.27226]
[1752827433889,1.72479907,119180.0,119170.0,0.27226]
[1752827434089,1.72479907,119180.0,119170.0,0.17138]
[1752827434690,1.34488968,119180.0,119170.0,0.17138]
[1752827434888,1.34488968,119180.0,119170.0,0.3391162]
[1752827435389,1.72479907,119180.0,119170.0,0.3391162]
[1752827436490,1.72479907,119180.0,119170.0,0.17138]
[1752827437790,1.72479907,119180.0,119170.0,0.3391159]
[1752827439090,1.72479907,119180.0,119170.0,0.3391046]
[1752827439291,1.34488968,119180.0,119170.0,0.3391046]
[1752827439490,1.72479907,119180.0,119170.0,0.3391046]
[1752827439893,1.72479907,119180.0,119170.0,0.17138]
[1752827440689,1.72479907,119180.0,119170.0,0.007]
[1752827445797,1.34488968,119180.0,119170.0,0.007]
[1752827446098,1.72479907,119180.0,119170.0,0.007]
[1752827446497,0.2003807,119170.0,119160.0,0.09163]
[1752827446798,1.11441235,119170.0,119160.0,0.09163]
[1752827447000,1.11441235,119170.0,119160.0,0.16269]
[1752827447498,0.73450296,119170.0,119160.0,0.16269]
[1752827447698,1.11441235,119170.0,119160.0,0.16269]
[1752827448301,1.11441235,119170.0,119160.0,0.22276]
[1752827448599,1.11441235,119170.0,119160.0,0.22476]
[1752827449001,1.11441235,119170.0,119160.0,0.22676]
[1752827449196,0.73450296,119170.0,119160.0,0.22676]
[1752827449595,1.18156431,119170.0,119160.0,0.002]
[1752827449796,1.18156431,119170.0,119160.0,0.09375]
[1752827450096,1.18156431,119170.0,119160.0,0.16481]
[1752827450296,1.18256431,119170.0,119160.0,0.16481]
[1752827450701,0.80165492,119170.0,119160.0,0.16481]
[1752827450898,1.18256431,119170.0,119160.0,0.16481]
[1752827451201,1.18256431,119170.0,119160.0,0.26923]
[1752827451499,1.18256431,119170.0,119160.0,0.4369647]
[1752827451500,0.22614422,119170.0,119160.0,0.4369647]
[1752827451692,0.36120482,119170.0,119160.0,1.17767409]
[1752827451892,0.97328482,119170.0,119160.0,0.4369647]
[1752827452099,1.35319421,119170.0,119160.0,0.4369647]
[1752827452298,0.74211421,119170.0,119160.0,0.4369647]
[1752827452494,1.35359421,119170.0,119160.0,0.4369647]
[1752827453006,0.77445421,119170.0,119160.0,0.4369647]
[1752827453200,1.38577421,119170.0,119160.0,0.4369647]
[1752827453401,1.38477421,119170.0,119160.0,0.4369647]
[1752827453604,1.38577421,119170.0,119160.0,0.4369647]
[1752827453799,1.00586482,119170.0,119160.0,0.4369647]
[1752827454001,1.38577421,119170.0,119160.0,0.4369647]
[1752827454906,1.38477421,119170.0,119160.0,0.4369647]
[1752827455105,1.38577421,119170.0,119160.0,0.4369647]
[1752827458608,1.43318421,119170.0,119160.0,0.4369647]
[1752827460706,1.38477421,119170.0,119160.0,0.4369647]
[1752827461003,0.19348422,119170.0,119160.0,0.7977647]
[1752827461209,0.29405296,119170.0,119160.0,1.4084047]
[1752827462703,0.67396235,119170.0,119160.0,1.0476047]
[1752827462911,0.67396235,119170.0,119160.0,1.4084047]
[1752827463116,0.70630235,119170.0,119160.0,1.4084047]
[1752827463305,0.70630235,119170.0,119160.0,0.2614847]
[1752827463509,0.2484988,119150.0,119140.0,0.14444961]
[1752827463708,1.60044819,119150.0,119140.0,0.16916961]
[1752827464013,1.72550865,119150.0,119140.0,0.16916961]
[1752827464511,1.72550865,119150.0,119140.0,0.12282961]
[1752827464711,1.72550865,119150.0,119140.0,0.12582961]
[1752827465212,1.72550865,119150.0,119140.0,0.12982961]
[1752827465713,1.72550865,119150.0,119140.0,0.29259241]
[1752827465913,1.72550865,119150.0,119140.0,0.17416961]
[1752827466113,1.79278642,119150.0,119140.0,0.34193241]
[1752827466915,1.79278642,119150.0,119140.0,0.41441241]
[1752827467109,1.58604727,119150.0,119130.0,0.3608]
[1752827467317,0.1687768,119130.0,119120.0,0.85802304]
[1752827467610,1.90515558,119130.0,119120.0,0.85802304]
[1752827467914,1.90515558,119130.0,119120.0,0.99411304]
[1752827467915,1.6514935,119130.0,119120.0,0.99411304]
[1752827468110,1.6514935,119130.0,119120.0,1.01883304]
[1752827468511,2.03140289,119130.0,119120.0,0.85802304]
[1752827468913,2.03737289,119130.0,119120.0,0.85802304]
[1752827469111,2.03737289,119130.0,119120.0,0.86102304]
[1752827469309,1.6574635,119130.0,119120.0,0.86102304]
[1752827469516,1.6584635,119130.0,119120.0,1.00211304]
[1752827469713,0.66637411,119130.0,119120.0,1.02683304]
[1752827470018,0.12724731,119130.0,119120.0,2.55229333]
[1752827470218,0.12624731,119130.0,119120.0,1.81058394]
[1752827470719,0.29402411,119130.0,119120.0,1.81058394]
[1752827470918,0.29402411,119130.0,119120.0,1.80758394]
[1752827471116,0.91166411,119130.0,119120.0,1.19262394]
[1752827471419,1.27246411,119130.0,119120.0,1.02483304]
[1752827471610,2.30073465,119130.0,119100.0,0.005]
[1752827471811,2.30073465,119130.0,119060.0,0.1925932]
[1752827471812,0.1678614,119070.0,119060.0,0.1925932]
[1752827472119,1.03612173,119070.0,119060.0,0.16081]
[1752827472312,1.03612173,119070.0,119040.0,0.2098729]
[1752827472313,0.1678896,119050.0,119040.0,0.2970391]
[1752827472519,0.54779899,119050.0,119040.0,0.4331291]
[1752827472718,0.67434993,119050.0,119040.0,0.4331291]
[1752827473016,1.1029731,119050.0,119040.0,0.4331291]
[1752827473320,1.1029731,119050.0,119040.0,0.26523]
[1752827474212,0.65624054,119050.0,119040.0,0.26523]
[1752827474813,0.0839547,119040.0,119020.0,0.43186]
[1752827475017,0.0839547,119040.0,119030.0,0.3287278]
[1752827475018,0.65762696,119040.0,119030.0,0.3287278]
[1752827475219,0.12619533,119040.0,119030.0,1.13626036]
[1752827475420,0.02004334,119050.0,119040.0,0.3287137]
[1752827475618,0.01838839,119080.0,119070.0,0.3286714]
[1752827475817,0.3608,119090.0,119080.0,0.1678473]
[1752827475818,0.6125578,119090.0,119080.0,0.1678473]
[1752827476115,0.18617218,119100.0,119090.0,0.2388932]
[1752827476321,0.2107652,119110.0,119100.0,0.3705818]
[1752827476517,0.2527172,119110.0,119100.0,0.33767644]
[1752827476715,0.82497778,119110.0,119100.0,0.33767644]
[1752827477020,0.29485378,119110.0,119100.0,0.33767644]
[1752827477221,0.29484558,119110.0,119100.0,1.145209]
[1752827477415,0.29484558,119110.0,119100.0,0.69847644]
[1752827477621,0.29484558,119110.0,119100.0,0.784409]
[1752827478024,0.12704058,119110.0,119100.0,1.145209]
[1752827478228,0.29484558,119110.0,119100.0,1.779289]
[1752827478418,0.29684558,119110.0,119100.0,1.779289]
[1752827478616,0.13404058,119110.0,119100.0,1.780289]
[1752827478820,0.80475558,119110.0,119100.0,0.05744734]
[1752827479118,0.1688332,119090.0,119080.0,0.07165]
[1752827479321,1.11847576,119090.0,119080.0,0.14751]
[1752827479620,1.24490383,119090.0,119080.0,0.0474]
[1752827479823,0.2890813,119070.0,119060.0,0.12436]
[1752827480019,1.11850386,119070.0,119060.0,0.17176]
[1752827480223,1.24528584,119070.0,119060.0,0.0474]
[1752827480520,0.1678753,119060.0,119050.0,0.68544]
[1752827480716,0.2680453,119060.0,119050.0,0.9776894]
[1752827480919,0.29465728,119060.0,119050.0,1.3384894]
[1752827481226,0.29465728,119060.0,119050.0,0.9776894]
[1752827481816,0.29465728,119060.0,119050.0,1.3384894]
[1752827482021,0.29465728,119060.0,119050.0,0.3396494]
[1752827482227,0.29565728,119060.0,119050.0,0.81184]
[1752827482921,0.29565728,119060.0,119050.0,0.17376]
[1752827483126,0.29565728,119060.0,119050.0,0.81124]
[1752827483326,0.65645728,119060.0,119050.0,0.81124]
[1752827483829,0.65645728,119060.0,119050.0,0.17376]
[1752827484029,0.65645728,119060.0,119050.0,0.811]
[1752827484327,0.65745728,119060.0,119050.0,0.17276]
[1752827484535,0.75762728,119060.0,119050.0,0.81]
[1752827484724,0.77767728,119060.0,119050.0,0.81]
[1752827485934,1.22440984,119060.0,119050.0,0.17276]
[1752827486130,1.60709984,119060.0,119050.0,0.0484]
[1752827486327,1.60709984,119060.0,119050.0,0.001]
[1752827487028,0.2909495,119050.0,119040.0,0.0474]
[1752827487228,1.75445206,119050.0,119040.0,0.0474]
[1752827487430,0.3100136,119040.0,119030.0,0.17176]
[1752827487626,1.11754616,119040.0,119030.0,0.17176]
[1752827487825,1.24313355,119040.0,119030.0,0.17176]
[1752827488229,0.2099252,119020.0,119000.0,2.38492813]
[1752827488427,0.1650411,119030.0,119020.0,0.17176]
[1752827488428,0.5717108,119030.0,119020.0,0.17176]
[1752827488627,0.2109108,119030.0,119020.0,0.17176]
[1752827488824,0.33718853,119030.0,119020.0,0.17176]
[1752827489026,0.79815853,119030.0,119020.0,0.17176]
[1752827489228,0.1679459,119010.0,119000.0,0.44591033]
[1752827489430,0.1689459,119010.0,119000.0,0.54602033]
[1752827489634,0.75673163,119010.0,119000.0,0.18522033]
[1752827489835,1.24540419,119010.0,119000.0,0.16097033]
[1752827490541,1.24540419,119010.0,119000.0,0.06086033]
[1752827490733,1.24540419,119010.0,119000.0,0.01346033]
[1752827490934,0.0419907,119000.0,118970.0,0.10011]
[1752827491138,1.3322227,118990.0,118980.0,0.0474]
[1752827491331,1.46323876,118990.0,118980.0,0.14751]
[1752827491537,1.81979781,118990.0,118980.0,0.17176]
[1752827491735,1.91996781,118990.0,118980.0,0.17176]
[1752827492440,1.96190781,118990.0,118980.0,0.17176]
[1752827492639,1.96290781,118990.0,118980.0,0.17276]
[1752827493136,1.13716868,118990.0,118960.0,0.3608]
[1752827493336,0.00077438,118960.0,118950.0,0.3397906]
[1752827493537,0.63396,118970.0,118960.0,0.1680165]
[1752827493736,0.80273678,118970.0,118960.0,0.17176]
[1752827493935,0.29481477,118970.0,118960.0,0.17176]
[1752827494136,0.12603799,118970.0,118960.0,1.31542906]
[1752827494337,0.12603799,118970.0,118960.0,0.8686965]
[1752827494533,0.1680306,118950.0,118940.0,0.17176]
[1752827494836,0.1680306,118950.0,118930.0,0.07165]
[1752827494837,0.1680447,118940.0,118930.0,0.07165]
[1752827495138,1.24268618,118940.0,118930.0,0.0474]
[1752827495332,1.24268618,118940.0,118920.0,0.14751]
[1752827495333,0.30994328,118930.0,118920.0,0.14751]
[1752827495642,0.30994328,118930.0,118920.0,0.00115222]
[1752827495643,1.24347476,118930.0,118920.0,0.00115222]
[1752827496335,0.1267733,118930.0,118920.0,0.53371222]
[1752827496537,0.2948322,118930.0,118920.0,0.17291222]
[1752827497940,0.2978322,118930.0,118920.0,0.80799222]
[1752827498140,0.2978322,118930.0,118920.0,0.34198522]
[1752827498337,0.12899892,118930.0,118920.0,1.42271778]
[1752827498544,0.12899892,118930.0,118920.0,2.20153378]
[1752827498842,0.00077438,118950.0,118940.0,0.2396947]
[1752827499038,0.0420141,118940.0,118920.0,0.44703882]
[1752827499343,1.23196008,118940.0,118930.0,0.8054]
[1752827499537,1.23196008,118940.0,118930.0,0.17291222]
[1752827499837,0.9133212,118940.0,118930.0,0.97449102]
[1752827500042,0.9133212,118940.0,118930.0,0.97437102]
[1752827500235,0.9133212,118940.0,118930.0,0.97433102]
[1752827500433,0.1276683,118940.0,118930.0,1.33513102]
[1752827500741,0.12689392,118940.0,118930.0,1.33513102]
[1752827500936,0.29493862,118940.0,118930.0,0.97433102]
[1752827501141,0.12689392,118940.0,118930.0,1.33513102]
[1752827501738,0.002,118950.0,118940.0,0.1680447]
[1752827502035,0.21836208,118960.0,118950.0,0.3205005]
[1752827502232,0.21836208,118960.0,118950.0,0.6813005]
[1752827502444,0.34454824,118960.0,118950.0,0.15247]
[1752827502640,0.36758824,118960.0,118950.0,0.75835222]
[1752827503040,0.36758824,118960.0,118950.0,1.28718272]
[1752827503345,0.34454824,118960.0,118950.0,1.31529272]
[1752827503934,0.34854824,118960.0,118950.0,0.78714222]
[1752827504134,0.37158824,118960.0,118950.0,0.78714222]
[1752827504544,0.34854824,118960.0,118950.0,1.31597282]
[1752827504845,0.17975616,118960.0,118950.0,1.31597282]
[1752827505046,0.29820256,118960.0,118950.0,1.31597282]
[1752827505835,0.35177256,118960.0,118950.0,1.31597282]
[1752827506644,0.18375616,118960.0,118950.0,1.31597282]
[1752827506939,0.13418616,118960.0,118950.0,1.31597282]
[1752827507433,0.13418616,118960.0,118950.0,2.13761952]
[1752827507636,0.04892,118980.0,118970.0,0.1680023]
[1752827507838,0.2169082,118980.0,118970.0,1.2665523]
[1752827508040,0.34308288,118980.0,118970.0,1.2665523]
[1752827508242,0.34385726,118980.0,118970.0,1.2665523]
[1752827508643,0.36654726,118980.0,118970.0,1.26770452]
[1752827508942,0.47801726,118980.0,118970.0,0.73902222]
[1752827509243,0.47801726,118980.0,118970.0,0.90702452]
[1752827509544,0.87953596,118980.0,118970.0,0.10718222]
[1752827509740,0.88353596,118980.0,118970.0,0.73978222]
[1752827509943,0.48001726,118980.0,118970.0,0.90778452]
[1752827510435,0.37377288,118980.0,118970.0,0.90778452]
[1752827510635,0.18309468,118980.0,118970.0,1.26858452]
[1752827510836,0.13417468,118980.0,118970.0,1.26858452]
[1752827511036,0.2815643,119000.0,118990.0,0.167974]
[1752827511242,0.3450438,119000.0,118990.0,1.207514]
[1752827511539,0.47071303,119000.0,118990.0,0.67874]
[1752827511737,0.47071303,119000.0,118990.0,0.04645222]
[1752827511738,0.83151303,119000.0,118990.0,0.04645222]
[1752827511940,1.23503173,119000.0,118990.0,0.00115222]
[1752827512147,0.87423173,119000.0,118990.0,0.63503222]
[1752827512343,1.23803173,119000.0,118990.0,0.63503222]
[1752827512543,1.23803173,119000.0,118990.0,0.00115222]
[1752827512848,1.24403173,119000.0,118990.0,0.00215222]
[1752827514747,0.1679882,118980.0,118970.0,0.072]
[1752827515046,0.47178407,118980.0,118970.0,0.8729623]
[1752827515444,0.83258407,118980.0,118970.0,0.70496]
[1752827515642,0.47178407,118980.0,118970.0,0.2400023]
[1752827515843,0.83258407,118980.0,118970.0,0.7042]
[1752827516043,0.83258407,118980.0,118970.0,0.8720423]
[1752827516442,0.3450823,118970.0,118950.0,0.1970102]
[1752827516749,0.40040178,118970.0,118960.0,0.8000564]
[1752827517046,0.44932178,118970.0,118960.0,0.8000564]
[1752827517347,0.55479178,118970.0,118960.0,0.8000564]
[1752827518851,0.91559178,118970.0,118960.0,0.8024164]
[1752827519050,0.91559178,118970.0,118960.0,0.6344]
[1752827519249,0.91559178,118970.0,118960.0,0.8054164]
[1752827519848,0.91559178,118970.0,118960.0,0.8074164]
[1752827520350,0.91559178,118970.0,118960.0,0.006]
[1752827520650,0.91559178,118970.0,118960.0,0.1740164]
[1752827520950,0.91559178,118970.0,118960.0,0.8090164]
[1752827521454,0.91559178,118970.0,118960.0,0.1740164]
[1752827521648,1.36285932,118970.0,118960.0,0.006]
[1752827521852,1.36285932,118970.0,118960.0,0.6418]
[1752827522153,1.36285932,118970.0,118960.0,0.6398]
[1752827522447,1.36285932,118970.0,118960.0,0.8088163]
[1752827522659,0.91559178,118970.0,118960.0,0.005]
[1752827522953,0.83158548,118970.0,118960.0,0.1730163]
[1752827523155,0.47078548,118970.0,118960.0,0.1730163]
[1752827523748,0.83158548,118970.0,118960.0,0.1730163]
[1752827523950,1.27885302,118970.0,118960.0,0.1730163]
[1752827524151,1.27885302,118970.0,118960.0,0.64424]
[1752827524451,1.27885302,118970.0,118960.0,0.005]
[1752827524652,1.27885302,118970.0,118960.0,0.64468]
[1752827525643,1.27885302,118970.0,118960.0,0.005]
[1752827526852,0.83158548,118970.0,118960.0,0.005]
[1752827527054,1.27885302,118970.0,118960.0,0.1730163]
[1752827527557,0.83158548,118970.0,118960.0,0.1730163]
[1752827527753,0.83158548,118970.0,118960.0,0.005]
[1752827527957,0.27551388,118950.0,118940.0,0.8066722]
[1752827528159,0.02269,118960.0,118950.0,0.2133305]
[1752827528357,0.1907063,118960.0,118950.0,0.5741305]
[1752827528555,0.47049792,118960.0,118950.0,0.5741305]
[1752827528750,0.47049792,118960.0,118950.0,0.5288305]
[1752827528958,0.1680305,118950.0,118940.0,0.722577]
[1752827529256,0.3163027,118950.0,118940.0,1.33787954]
[1752827529461,0.4706928,118950.0,118940.0,1.299712]
[1752827529761,0.4706928,118950.0,118940.0,0.938912]
[1752827530063,0.4706928,118950.0,118940.0,1.299712]
[1752827530264,0.15439,118970.0,118960.0,0.1680165]
[1752827530563,0.34584538,118980.0,118970.0,0.1923924]
[1752827531056,0.47210973,118980.0,118970.0,0.1680024]
[1752827531265,0.83290973,118980.0,118970.0,0.1680024]
[1752827532062,0.47210973,118980.0,118970.0,0.1680024]
[1752827532361,0.47133535,118980.0,118970.0,0.1680024]
[1752827532963,0.47210973,118980.0,118970.0,0.1680024]
[1752827533262,0.47333535,118980.0,118970.0,0.1680024]
[1752827533462,0.51897973,118980.0,118970.0,0.1680024]
[1752827533662,0.58886973,118980.0,118970.0,0.2070224]
[1752827535364,0.51897973,118980.0,118970.0,0.2314124]
[1752827536865,0.58886973,118980.0,118970.0,0.2070224]
[1752827538462,0.42010435,118980.0,118970.0,0.2346124]
[1752827538765,0.41810435,118980.0,118970.0,0.2346124]
[1752827538965,0.30334435,118980.0,118970.0,1.04467994]
[1752827540668,0.24227453,119000.0,118970.0,1.04467994]
[1752827540669,0.13375031,119000.0,118970.0,2.54686281]
[1752827540969,0.89528436,119010.0,119000.0,0.1679602]
[1752827541272,1.08684281,119010.0,119000.0,0.8107202]
[1752827541768,0.98540833,119010.0,119000.0,0.8107202]
[1752827541959,0.58260913,119010.0,119000.0,1.61878774]
[1752827542160,0.31555845,119010.0,119000.0,1.1715202]
[1752827542362,0.30330845,119010.0,119000.0,1.61878774]
[1752827542570,0.30330845,119010.0,119000.0,1.1715202]
[1752827542765,0.28238845,119010.0,119000.0,1.1725202]
[1752827543270,0.47125475,119010.0,119000.0,1.1715202]
[1752827543569,0.30330845,119010.0,119000.0,1.1735202]
[1752827544370,0.47125475,119010.0,119000.0,1.1735202]
[1752827544565,0.30330845,119010.0,119000.0,1.1735202]
[1752827544760,0.47125475,119010.0,119000.0,1.1735202]
[1752827545268,0.30330845,119010.0,119000.0,1.1735202]
[1752827546065,0.58183475,119010.0,119000.0,1.1735202]
[1752827546366,0.58183475,119010.0,119000.0,1.1755202]
[1752827549163,0.30330845,119010.0,119000.0,1.1755202]
[1752827549367,0.12576845,119010.0,119000.0,1.62278774]
[1752827550068,0.34150475,119010.0,119000.0,1.62278774]
[1752827550372,0.31555845,119010.0,119000.0,1.1760002]
[1752827550575,0.12576845,119010.0,119000.0,1.62326774]
[1752827551375,0.27838845,119010.0,119000.0,1.62326774]
[1752827551770,0.12576845,119010.0,119000.0,1.62326774]
[1752827552974,0.12576845,119010.0,119000.0,1.70729782]
[1752827554372,0.23059845,119010.0,119000.0,1.70729782]
[1752827554676,0.27838845,119010.0,119000.0,1.26003028]
[1752827554973,0.27838845,119010.0,119000.0,1.70729782]
[1752827555476,0.27838845,119010.0,119000.0,1.06405782]
[1752827555677,0.27838845,119010.0,119000.0,1.70657782]
[1752827557177,0.27838845,119010.0,119000.0,1.06405782]
[1752827557378,0.30330845,119010.0,119000.0,1.62158774]
[1752827557774,0.34809845,119010.0,119000.0,0.5327602]
[1752827557979,0.41388845,119010.0,119000.0,1.1743202]
[1752827558275,0.41388845,119010.0,119000.0,0.5327602]
[1752827558579,0.41388845,119010.0,119000.0,1.61950774]
[1752827558776,0.41388845,119010.0,119000.0,1.62250774]
[1752827559078,0.41488845,119010.0,119000.0,1.62350774]
[1752827559676,0.41488845,119010.0,119000.0,1.1762402]
[1752827561476,0.27938845,119010.0,119000.0,1.70753782]
[1752827561775,0.12676845,119010.0,119000.0,1.70753782]
[1752827561980,0.27938845,119010.0,119000.0,1.70753782]
[1752827562279,0.27938845,119010.0,119000.0,1.71738558]
[1752827562980,0.12676845,119010.0,119000.0,1.71738558]
[1752827565479,0.10473115,119010.0,119000.0,1.71738558]
[1752827567381,0.25575115,119010.0,119000.0,1.71738558]
[1752827567684,0.25575115,119010.0,119000.0,1.71414558]
[1752827568774,0.27833115,119010.0,119000.0,1.07590558]
[1752827568978,0.38646115,119010.0,119000.0,0.62863804]
[1752827569285,0.38646115,119010.0,119000.0,1.18244796]
[1752827569974,0.55440815,119010.0,119000.0,1.18236796]
[1752827570175,0.55440815,119010.0,119000.0,0.54460796]
[1752827570383,0.38646115,119010.0,119000.0,1.18220796]
[1752827570584,0.38646115,119010.0,119000.0,0.54460796]
[1752827570783,0.38646115,119010.0,119000.0,1.18220796]
[1752827574577,0.38646115,119010.0,119000.0,1.61962774]
[1752827575481,0.38646115,119010.0,119000.0,0.98202774]
[1752827575687,0.38646115,119010.0,119000.0,1.1709602]
[1752827578577,1.36247559,119010.0,119000.0,0.006]
[1752827578787,0.4497051,118990.0,118980.0,0.2519705]
[1752827578985,0.8105051,118990.0,118980.0,0.2519705]
[1752827579287,0.93585482,118990.0,118980.0,0.8860105]
[1752827579984,0.93585482,118990.0,118980.0,0.8858505]
[1752827580183,0.93585482,118990.0,118980.0,0.8888505]
[1752827580386,0.93585482,118990.0,118980.0,0.8984505]
[1752827580580,0.40707972,118990.0,118980.0,1.34571804]
[1752827580783,0.40707972,118990.0,118980.0,1.3541705]
[1752827580984,0.40707972,118990.0,118980.0,1.3601705]
[1752827581185,0.40707972,118990.0,118980.0,1.7209705]
[1752827581484,0.27636972,118990.0,118980.0,1.7209705]
[1752827586185,0.29894972,118990.0,118980.0,1.7209705]
[1752827586386,0.29894972,118990.0,118980.0,1.71251804]
[1752827586594,0.34179972,118990.0,118980.0,1.71251804]
[1752827587699,0.40707972,118990.0,118980.0,1.2652505]
[1752827587997,0.40707972,118990.0,118980.0,1.70651804]
[1752827588197,0.57505482,118990.0,118980.0,1.70651804]
[1752827588398,0.57505482,118990.0,118980.0,0.8984505]
[1752827588898,0.57505482,118990.0,118980.0,0.8888505]
[1752827589594,0.93585482,118990.0,118980.0,0.8468537]
[1752827589790,1.38312236,118990.0,118980.0,0.8048692]
[1752827590098,1.38312236,118990.0,118980.0,0.8027092]
[1752827590099,0.93585482,118990.0,118980.0,0.8027092]
[1752827590301,1.0046094,118990.0,118980.0,0.8027092]
[1752827590490,1.0046094,118990.0,118980.0,0.63472]
[1752827590695,1.0046094,118990.0,118980.0,0.8027092]
[1752827591999,0.40707972,118990.0,118980.0,1.62037674]
[1752827592195,0.40707972,118990.0,118980.0,1.25957674]
[1752827592396,0.4078541,118990.0,118980.0,0.8123092]
[1752827595002,0.40707972,118990.0,118980.0,0.8123092]
[1752827595406,0.4078541,118990.0,118980.0,0.8123092]
[1752827595605,0.5758292,118990.0,118980.0,0.8123092]
[1752827596301,0.9366292,118990.0,118980.0,0.8027092]
[1752827598802,1.38389674,118990.0,118980.0,0.8027092]
[1752827599206,0.9366292,118990.0,118980.0,0.8027092]
[1752827599906,1.01342334,118990.0,118980.0,0.8027092]
[1752827600907,1.39500248,118990.0,118980.0,0.8027092]
[1752827602007,1.3355579,118990.0,118980.0,0.8027092]
[1752827603007,0.95397876,118990.0,118980.0,0.8123092]
[1752827603403,0.95397886,118990.0,118980.0,0.8123092]
[1752827603908,0.95320448,118990.0,118980.0,0.8079492]
[1752827604208,0.95397886,118990.0,118980.0,0.8079492]
[1752827604501,1.335558,118990.0,118980.0,0.003]
[1752827604896,1.335558,118990.0,118980.0,0.7981893]
[1752827605711,0.95397886,118990.0,118980.0,0.7981893]
[1752827605901,1.335558,118990.0,118980.0,0.7981893]
[1752827607106,0.95397886,118990.0,118980.0,0.7981893]
[1752827607303,1.335558,118990.0,118980.0,0.7981893]
[1752827608101,0.2520244,118970.0,118950.0,0.04955943]
[1752827608297,1.09253748,118970.0,118960.0,0.8375732]
[1752827608500,0.86810928,118970.0,118960.0,0.8375732]
[1752827608804,0.99223928,118970.0,118960.0,0.8375732]
[1752827609005,1.03775928,118970.0,118960.0,0.8375732]
[1752827609503,1.03775928,118970.0,118960.0,0.7955699]
[1752827610103,0.4481875,118960.0,118950.0,0.004]
[1752827610407,0.95179922,118960.0,118950.0,0.7995916]
[1752827610811,0.95179922,118960.0,118950.0,0.7955916]
[1752827611007,0.95179922,118960.0,118950.0,0.8046716]
[1752827611209,0.9525736,118960.0,118950.0,0.8046716]
[1752827612312,0.52262912,118960.0,118950.0,1.55305074]
[1752827612512,0.5234035,118960.0,118950.0,1.19225074]
[1752827612905,0.5917735,118960.0,118950.0,0.8046716]
[1752827613210,0.5917735,118960.0,118950.0,1.18625074]
[1752827613601,0.59099912,118960.0,118950.0,1.18625074]
[1752827613809,0.5917735,118960.0,118950.0,1.18625074]
[1752827614014,0.4237561,118960.0,118950.0,1.18625074]
[1752827614217,0.3553861,118960.0,118950.0,1.19225074]
[1752827614513,0.32410172,118960.0,118950.0,1.19225074]
[1752827614811,0.24340172,118960.0,118950.0,1.55305074]
[1752827615117,0.14281172,118960.0,118950.0,1.55305074]
[1752827615514,0.18833172,118960.0,118950.0,1.55305074]
[1752827615717,0.28892172,118960.0,118950.0,1.55305074]
[1752827616308,0.45693922,118960.0,118950.0,1.55305074]
[1752827616505,0.48047922,118960.0,118950.0,1.19525074]
[1752827617511,0.48147922,118960.0,118950.0,1.19925074]
[1752827618113,0.31346172,118960.0,118950.0,1.19925074]
[1752827618313,0.48147922,118960.0,118950.0,1.19925074]
[1752827618512,0.31346172,118960.0,118950.0,1.19925074]
[1752827618914,0.31346172,118960.0,118950.0,0.57221074]
[1752827619119,0.31346172,118960.0,118950.0,0.93301074]
[1752827619319,0.31346172,118960.0,118950.0,1.55977074]
[1752827619620,0.28992172,118960.0,118950.0,1.55977074]
[1752827620119,0.31346172,118960.0,118950.0,1.55977074]
[1752827622223,0.31346172,118960.0,118950.0,1.19897074]
[1752827622415,0.31346172,118960.0,118950.0,1.55977074]
[1752827624019,0.31346172,118960.0,118950.0,1.1781916]
[1752827624217,0.31346172,118960.0,118950.0,1.55977074]
[1752827624921,0.42398172,118960.0,118950.0,1.19897074]
[1752827625128,0.59199912,118960.0,118950.0,0.8096716]
[1752827625318,0.42398172,118960.0,118950.0,0.8096716]
[1752827625518,0.59199912,118960.0,118950.0,0.8096716]
[1752827625818,0.59199912,118960.0,118950.0,1.19125074]
[1752827625819,0.42398172,118960.0,118950.0,1.19125074]
[1752827626029,0.59199912,118960.0,118950.0,1.19085074]
[1752827626324,0.42398172,118960.0,118950.0,1.19085074]
[1752827627222,0.42398172,118960.0,118950.0,0.8092716]
[1752827627428,0.42398172,118960.0,118950.0,1.19085074]
[1752827627632,0.42398172,118960.0,118950.0,0.8092716]
[1752827627822,0.42398172,118960.0,118950.0,1.19085074]
[1752827628128,0.42398172,118960.0,118950.0,0.8092716]
[1752827628325,0.42398172,118960.0,118950.0,1.19085074]
[1752827629531,0.59199912,118960.0,118950.0,0.8092716]
[1752827629828,0.42398172,118960.0,118950.0,1.19085074]
[1752827630028,0.42298172,118960.0,118950.0,1.18685074]
[1752827630326,0.42298172,118960.0,118950.0,1.18485074]
[1752827630327,0.59099912,118960.0,118950.0,1.18485074]
[1752827631430,0.95179912,118960.0,118950.0,1.18485074]
[1752827631926,0.42298172,118960.0,118950.0,1.18485074]
[1752827632121,0.59099912,118960.0,118950.0,1.18485074]
[1752827632628,0.95179912,118960.0,118950.0,1.18485074]
[1752827633624,0.78378172,118960.0,118950.0,1.18485074]
[1752827633923,0.95179912,118960.0,118950.0,1.18485074]
[1752827635924,0.95179912,118960.0,118950.0,0.8032716]
[1752827636931,0.95179912,118960.0,118950.0,1.18165074]
[1752827637628,0.95179912,118960.0,118950.0,0.8000716]
[1752827637829,0.95179912,118960.0,118950.0,1.18165074]
[1752827638225,0.59099912,118960.0,118950.0,1.18165074]
[1752827638629,0.95179912,118960.0,118950.0,1.18165074]
[1752827639537,0.78378172,118960.0,118950.0,1.18165074]
[1752827639832,0.95179912,118960.0,118950.0,1.18765074]
[1752827640225,0.59099912,118960.0,118950.0,0.8000716]
[1752827640426,0.42298172,118960.0,118950.0,1.18165074]